fUSD/lending_fUSD_20260630
["ID","MTS","AMOUNT","RATE_DAILY","PERIOD"]
[426739232,1782769850000,-161.57,0.0002773,30]
[426739228,1782769850000,-161.57,0.00027645,30]
[426739230,1782769850000,-161.57,0.00027702,7]
[426739229,1782769850000,-161.57,0.00027673,2]
[426739226,1782769850000,-161.57,0.00027588,2]
[426739224,1782769850000,-516.58,0.00027582,30]
[426739225,1782769850000,-563.03,0.00027585,30]
[426739223,1782769850000,-392.92,0.00027569,30]
[426739235,1782769850000,-161.57,0.00027759,2]
[426739220,1782769850000,-1027.870906,0.00035245,7]
[426739221,1782769850000,-37037.93224758,0.000355,120]
[426739219,1782769850000,-300.0,0.00033506,2]
[426739222,1782769850000,-258.1985688,0.000355,120]
[426739217,1782769850000,-242.92333528,0.00033506,2]
[426739218,1782769850000,-57.07666472,0.00033506,2]
[426739227,1782769850000,-161.57,0.00027616,7]
[426739238,1782769850000,-392.92,0.00027887,2]
[426739231,1782769850000,-392.92,0.00027728,7]
[426739240,1782769850000,-563.03,0.00027899,2]
[426739257,1782769850000,-516.58,0.00028684,7]
[426739258,1782769850000,-1839.1425269,0.000355,120]
[426739256,1782769850000,-392.92,0.00028682,7]
[426739252,1782769850000,-300.0,0.00033506,2]
[426739253,1782769850000,-300.0,0.00033506,2]
[426739254,1782769850000,-337.14047458,0.00034387,2]
[426739248,1782769850000,-516.58,0.00028369,2]
[426739251,1782769850000,-516.58,0.00028527,30]
[426739247,1782769850000,-392.92,0.00028364,2]
[426739255,1782769850000,-17715.49052249,0.000355,120]
[426739250,1782769850000,-392.92,0.00028523,30]
[426739249,1782769850000,-563.03,0.00028371,2]
[426739243,1782769850000,-563.03,0.00028056,30]
[426739241,1782769850000,-392.92,0.00028046,30]
[426739237,1782769850000,-161.57,0.00027816,30]
[426739239,1782769850000,-516.58,0.00027897,2]
[426739244,1782769850000,-392.92,0.00028205,7]
[426739242,1782769850000,-516.58,0.00028054,30]
[426739246,1782769850000,-563.03,0.00028213,7]
[426739245,1782769850000,-516.58,0.00028212,7]
[426739267,1782769851000,-4747.54521926,0.000355,120]
[426739263,1782769851000,-563.03,0.00028685,7]
[426739264,1782769851000,-71.93362375,0.00028841,2]
[426739266,1782769851000,-320.98637625,0.00028841,2]
[426739262,1782769851000,-563.03,0.00028528,30]
[426739261,1782769851000,-63.17500001,0.00027873,7]
[426739260,1782769851000,-98.39499999,0.00027873,7]
[426739259,1782769851000,-161.57,0.00027844,2]
[426739265,1782769851000,-161.57,0.00027901,30]
[426739268,1782769885000,-501.0,0.00015,2]
[426739269,1782769938000,-656.92,0.00013005,2]
[426739270,1782769951000,-1772.33926235,0.00013005,2]
[426739271,1782769963000,-1772.33926235,0.00013005,2]
[426739272,1782769976000,-811.07376318,0.00013005,2]
[426739273,1782769989000,-396.92731212,0.00013005,2]
[426739274,1782770043000,-2608.6244,0.00013004,2]
[426739275,1782770078000,879.21018526,8e-05,2]
[426739276,1782770096000,-153.0,0.00013004,2]
[426739277,1782770149000,-152.0,0.00013004,2]
[426739278,1782770203000,-152.0,0.00013004,2]
[426739281,1782770586000,-166.66,0.00012864,2]
[426739282,1782770639000,-151.0,0.00012872,2]
[426739283,1782770692000,-151.0,0.00012873,2]
[426739284,1782770746000,-152.0,0.00012874,2]
[426739285,1782770799000,-150.0,0.00012874,2]
[426739286,1782770852000,-150.0,0.00012874,2]
[426739287,1782770905000,-159.32,0.00012862,2]
[426739288,1782770959000,-199.5,0.00012868,2]
[426739307,1782770966000,-500.0,0.0001294,2]
[426739308,1782770966000,-300.86533071,0.0001294,2]
[426739290,1782770966000,-152.0,0.00012874,2]
[426739289,1782770966000,-160.0,0.00012874,2]
[426739291,1782770966000,-151.0,0.00012874,2]
[426739293,1782770966000,-153.0,0.00012874,2]
[426739294,1782770966000,-151.0,0.00012874,2]
[426739295,1782770966000,-152.0,0.00012874,2]
[426739296,1782770966000,-151.0,0.00012874,2]
[426739297,1782770966000,-151.0,0.00012874,2]
[426739292,1782770966000,-151.0,0.00012874,2]
[426739299,1782770966000,-152.0,0.00012875,2]
[426739301,1782770966000,-151.0,0.00012897,2]
[426739300,1782770966000,-151.0,0.00012878,2]
[426739302,1782770966000,-1233.41,0.00012922,2]
[426739303,1782770966000,-150.0,0.00012939,2]
[426739305,1782770966000,-500.0,0.0001294,2]
[426739304,1782770966000,-247.33750729,0.0001294,2]
[426739298,1782770966000,-152.0,0.00012874,2]
[426739306,1782770966000,-500.0,0.0001294,2]
[426739309,1782771012000,-153.0,0.00012874,2]
[426739342,1782771031000,-500.0,0.0001294,2]
[426739343,1782771031000,-500.0,0.0001294,2]
[426739345,1782771031000,-500.0,0.0001294,2]
[426739344,1782771031000,-500.0,0.0001294,2]
[426739348,1782771031000,-500.0,0.0001294,2]
[426739347,1782771031000,-500.0,0.0001294,2]
[426739341,1782771031000,-500.0,0.0001294,2]
[426739349,1782771031000,-500.0,0.0001294,2]
[426739350,1782771031000,-500.0,0.0001294,2]
[426739346,1782771031000,-500.0,0.0001294,2]
[426739338,1782771031000,-500.0,0.0001294,2]
[426739332,1782771031000,-500.0,0.0001294,2]
[426739336,1782771031000,-500.0,0.0001294,2]
[426739326,1782771031000,-287.71594723,0.00012878,2]
[426739339,1782771031000,-500.0,0.0001294,2]
[426739335,1782771031000,-500.0,0.0001294,2]
[426739340,1782771031000,-500.0,0.0001294,2]
[426739333,1782771031000,-500.0,0.0001294,2]
[426739330,1782771031000,-143.64853107,0.0001294,2]
[426739328,1782771031000,-199.13466929,0.0001294,2]
[426739331,1782771031000,-500.0,0.0001294,2]
[426739327,1782771031000,-152.0,0.00012892,2]
[426739351,1782771031000,-174.64897937,0.0001294,2]
[426739337,1782771031000,-500.0,0.0001294,2]
[426739329,1782771031000,-356.35146893,0.0001294,2]
[426739334,1782771031000,-500.0,0.0001294,2]
[426739358,1782771031000,-300.0,0.0001294,2]
[426739352,1782771031000,-500.0,0.0001294,2]
[426739377,1782771031000,-152.0,0.00013003,2]
[426739376,1782771031000,-150.0,0.00013003,2]
[426739375,1782771031000,-301.62041916,0.00012941,2]
[426739373,1782771031000,-500.0,0.00012941,2]
[426739368,1782771031000,-500.0,0.00012941,2]
[426739367,1782771031000,-500.0,0.00012941,2]
[426739365,1782771031000,-500.0,0.00012941,2]
[426739372,1782771031000,-500.0,0.00012941,2]
[426739369,1782771031000,-333.58952447,0.00012941,2]
[426739371,1782771031000,-265.60185884,0.00012941,2]
[426739366,1782771031000,-500.0,0.00012941,2]
[426739353,1782771031000,-500.0,0.0001294,2]
[426739374,1782771031000,-500.0,0.00012941,2]
[426739356,1782771031000,-500.0,0.0001294,2]
[426739355,1782771031000,-500.0,0.0001294,2]
[426739361,1782771031000,-216.58458871,0.0001294,2]
[426739360,1782771031000,-500.0,0.0001294,2]
[426739357,1782771031000,-500.0,0.0001294,2]
[426739370,1782771031000,-500.0,0.00012941,2]
[426739359,1782771031000,-500.0,0.0001294,2]
[426739363,1782771031000,-500.0,0.00012941,2]
[426739364,1782771031000,-500.0,0.00012941,2]
[426739362,1782771031000,-500.0,0.00012941,2]
[426739354,1782771031000,-500.0,0.0001294,2]
[426739419,1782771032000,-202.98567944,0.00013213,2]
[426739415,1782771032000,-166.66,0.00013135,2]
[426739413,1782771032000,-9999.99,0.00013028,2]
[426739412,1782771032000,-150.0,0.00013028,2]
[426739411,1782771032000,-150.0,0.00013005,2]
[426739404,1782771032000,-151.0,0.00013004,2]
[426739405,1782771032000,-150.0,0.00013004,2]
[426739402,1782771032000,-152.0,0.00013004,2]
[426739407,1782771032000,-152.0,0.00013005,2]
[426739417,1782771032000,-659.73,0.00013188,2]
[426739410,1782771032000,-151.0,0.00013005,2]
[426739421,1782771032000,-218.57959335,0.00013213,2]
[426739423,1782771032000,-500.0,0.00013213,2]
[426739420,1782771032000,-500.0,0.00013213,2]
[426739414,1782771032000,-150.99,0.00013028,2]
[426739418,1782771032000,-532.464194,0.00013213,2]
[426739416,1782771032000,-2600.5,0.00013135,2]
[426739406,1782771032000,-150.0,0.00013004,2]
[426739426,1782771032000,-208.57,0.0001322,2]
[426739427,1782771032000,-150.0,0.0001322,2]
[426739428,1782771032000,-166.66,0.00013405,2]
[426739425,1782771032000,-500.0,0.00013213,2]
[426739430,1782771032000,-150.0,0.00013424,2]
[426739432,1782771032000,-500.0,0.00013424,2]
[426739422,1782771032000,-248.61514859,0.00013213,2]
[426739401,1782771032000,-151.0,0.00013004,2]
[426739394,1782771032000,-151.0,0.00013004,2]
[426739408,1782771032000,-153.0,0.00013005,2]
[426739384,1782771032000,-152.0,0.00013003,2]
[426739385,1782771032000,-151.0,0.00013003,2]
[426739382,1782771032000,-151.0,0.00013003,2]
[426739380,1782771032000,-153.0,0.00013003,2]
[426739378,1782771032000,-152.0,0.00013003,2]
[426739387,1782771032000,-152.0,0.00013004,2]
[426739379,1782771032000,-150.0,0.00013003,2]
[426739383,1782771032000,-151.0,0.00013003,2]
[426739381,1782771032000,-151.0,0.00013003,2]
[426739386,1782771032000,-150.0,0.00013004,2]
[426739389,1782771032000,-152.0,0.00013004,2]
[426739403,1782771032000,-151.0,0.00013004,2]
[426739399,1782771032000,-152.0,0.00013004,2]
[426739391,1782771032000,-150.0,0.00013004,2]
[426739390,1782771032000,-152.0,0.00013004,2]
[426739392,1782771032000,-152.0,0.00013004,2]
[426739393,1782771032000,-150.0,0.00013004,2]
[426739397,1782771032000,-150.0,0.00013004,2]
[426739396,1782771032000,-152.0,0.00013004,2]
[426739395,1782771032000,-151.0,0.00013004,2]
[426739429,1782771032000,-150.0,0.00013424,2]
[426739398,1782771032000,-151.0,0.00013004,2]
[426739400,1782771032000,-151.0,0.00013004,2]
[426739409,1782771032000,-151.0,0.00013005,2]
[426739388,1782771032000,-151.0,0.00013004,2]
[426739433,1782771032000,-500.0,0.00013424,2]
[426739424,1782771032000,-210.36404082,0.00013213,2]
[426739441,1782771032000,-500.0,0.00013424,2]
[426739464,1782771032000,-500.0,0.00013698,2]
[426739471,1782771032000,-175.13586418,0.00013698,2]
[426739465,1782771032000,-500.0,0.00013698,2]
[426739473,1782771032000,-152.0,0.00013698,2]
[426739466,1782771032000,-500.0,0.00013698,2]
[426739468,1782771032000,-500.0,0.00013698,2]
[426739431,1782771032000,-238.08670734,0.00013424,2]
[426739470,1782771032000,-500.0,0.00013698,2]
[426739475,1782771032000,-200.0,0.00013699,2]
[426739469,1782771032000,-500.0,0.00013698,2]
[426739472,1782771032000,-456.0,0.00013698,2]
[426739474,1782771032000,-200.0,0.00013698,2]
[426739476,1782771032000,-166.66,0.00013947,2]
[426739481,1782771032000,-166.66,0.00014218,2]
[426739483,1782771032000,-2100.0,0.000143,5]
[426739478,1782771032000,-700.0,0.000141,5]
[426739480,1782771032000,-1400.0,0.000142,5]
[426739479,1782771032000,-150.14924506,0.00014161,2]
[426739482,1782771032000,-150.0,0.00014237,2]
[426739477,1782771032000,-255.0,0.00014039,2]
[426739484,1782771032000,-82.50545031,0.000144,5]
[426739485,1782771032000,-2717.49454969,0.000144,5]
[426739486,1782771032000,-3600.0,0.000145,5]
[426739488,1782771032000,-500.0,0.00014626,2]
[426739487,1782771032000,-700.0,0.000146,5]
[426739463,1782771032000,-500.0,0.00013698,2]
[426739454,1782771032000,-4905.7910706,0.00013697,2]
[426739467,1782771032000,-500.0,0.00013698,2]
[426739461,1782771032000,-500.0,0.00013698,2]
[426739440,1782771032000,-500.0,0.00013424,2]
[426739434,1782771032000,-500.0,0.00013424,2]
[426739442,1782771032000,-251.43799297,0.00013424,2]
[426739462,1782771032000,-500.0,0.00013698,2]
[426739435,1782771032000,-500.0,0.00013424,2]
[426739436,1782771032000,-509.56126523,0.00013424,2]
[426739437,1782771032000,-500.0,0.00013424,2]
[426739438,1782771032000,-500.0,0.00013424,2]
[426739439,1782771032000,-500.0,0.00013424,2]
[426739445,1782771032000,-616.0,0.00013424,2]
[426739452,1782771032000,-323.12,0.00013655,2]
[426739450,1782771032000,-241393.19445251,0.00013598,2]
[426739443,1782771032000,-500.0,0.00013424,2]
[426739448,1782771032000,-150.0,0.00013488,2]
[426739456,1782771032000,-500.0,0.00013698,2]
[426739459,1782771032000,-500.0,0.00013698,2]
[426739449,1782771032000,-150.0,0.00013488,2]
[426739453,1782771032000,-166.66,0.00013676,2]
[426739455,1782771032000,-500.0,0.00013698,2]
[426739460,1782771032000,-174.54,0.00013698,2]
[426739458,1782771032000,-500.0,0.00013698,2]
[426739451,1782771032000,-21234.21874749,0.00013598,2]
[426739444,1782771032000,-500.0,0.00013424,2]
[426739446,1782771032000,-150.0,0.00013488,2]
[426739447,1782771032000,-150.0,0.00013488,2]
[426739457,1782771032000,-500.0,0.00013698,2]
[426739502,1782771033000,-500.0,0.00014626,2]
[426739505,1782771033000,-4.56380348,0.00014626,2]
[426739506,1782771033000,-150.0,0.00014626,2]
[426739500,1782771033000,-500.0,0.00014626,2]
[426739503,1782771033000,-150.0,0.00014626,2]
[426739501,1782771033000,-200.0,0.00014626,2]
[426739499,1782771033000,-150.0,0.00014626,2]
[426739504,1782771033000,-495.43619652,0.00014626,2]
[426739498,1782771033000,-500.0,0.00014626,2]
[426739511,1782771033000,-250.0,0.00014626,2]
[426739496,1782771033000,-555.05533822,0.00014626,2]
[426739495,1782771033000,-500.0,0.00014626,2]
[426739489,1782771033000,-500.0,0.00014626,2]
[426739497,1782771033000,-150.0,0.00014626,2]
[426739492,1782771033000,-500.0,0.00014626,2]
[426739494,1782771033000,-500.0,0.00014626,2]
[426739491,1782771033000,-500.0,0.00014626,2]
[426739490,1782771033000,-500.0,0.00014626,2]
[426739493,1782771033000,-500.0,0.00014626,2]
[426739510,1782771033000,-150.0,0.00014626,2]
[426739508,1782771033000,-150.0,0.00014626,2]
[426739512,1782771033000,-700.0,0.000147,5]
[426739509,1782771033000,-150.0,0.00014626,2]
[426739531,1782771033000,-1753.0335216,0.000149,2]
[426739526,1782771033000,-714.3926755,0.000149,2]
[426739530,1782771033000,-8909.22330932,0.000149,2]
[426739529,1782771033000,-1319.69710583,0.000149,2]
[426739527,1782771033000,-700.0,0.000149,5]
[426739523,1782771033000,-490.23359238,0.000149,2]
[426739520,1782771033000,-1319.69710583,0.00014899,2]
[426739522,1782771033000,-1319.69710583,0.000149,2]
[426739521,1782771033000,-1319.69710583,0.00014899,2]
[426739525,1782771033000,-2500.0,0.000149,2]
[426739518,1782771033000,-1319.69710583,0.00014898,2]
[426739517,1782771033000,-1319.69710583,0.00014898,2]
[426739516,1782771033000,-1319.69710583,0.00014898,2]
[426739515,1782771033000,-1319.69710583,0.00014897,2]
[426739524,1782771033000,-11046.26062867,0.000149,2]
[426739514,1782771033000,-1319.69710592,0.00014897,2]
[426739513,1782771033000,-700.0,0.000148,5]
[426739507,1782771033000,-218.20374736,0.00014626,2]
[426739528,1782771033000,-1529.81368445,0.000149,2]
[426739519,1782771033000,-1319.69710583,0.00014899,2]
[426739551,1782771037000,-500.0,0.00014999,2]
[426739555,1782771037000,-500.0,0.00014999,2]
[426739553,1782771037000,-500.0,0.00014999,2]
[426739552,1782771037000,-500.0,0.00014999,2]
[426739554,1782771037000,-500.0,0.00014999,2]
[426739548,1782771037000,-500.0,0.00014999,2]
[426739559,1782771037000,-463.00138276,0.00014999,2]
[426739550,1782771037000,-500.0,0.00014999,2]
[426739558,1782771037000,-500.0,0.00014999,2]
[426739549,1782771037000,-500.0,0.00014999,2]
[426739536,1782771037000,-292.25917081,0.00014908,2]
[426739535,1782771037000,-1151.38981274,0.000149,2]
[426739545,1782771037000,-500.0,0.00014999,2]
[426739540,1782771037000,-1262.5027997,0.0001499,2]
[426739541,1782771037000,-1262.5027997,0.0001499,2]
[426739537,1782771037000,-231.65641724,0.00014986,2]
[426739539,1782771037000,-1262.5027997,0.0001499,2]
[426739544,1782771037000,-500.0,0.00014999,2]
[426739542,1782771037000,-151.0,0.00014997,2]
[426739543,1782771037000,-485.10758624,0.00014999,5]
[426739538,1782771037000,-39289.74611226,0.00014989,2]
[426739557,1782771037000,-500.0,0.00014999,2]
[426739546,1782771037000,-500.0,0.00014999,2]
[426739556,1782771037000,-500.0,0.00014999,2]
[426739571,1782771037000,-500.0,0.00014999,2]
[426739561,1782771037000,-500.0,0.00014999,2]
[426739590,1782771037000,-500.0,0.00014999,2]
[426739592,1782771037000,-1197.96,0.00014999,2]
[426739594,1782771037000,-1197.96,0.00014999,2]
[426739596,1782771037000,-1197.96,0.00014999,2]
[426739547,1782771037000,-500.0,0.00014999,2]
[426739587,1782771037000,-500.0,0.00014999,2]
[426739591,1782771037000,-500.0,0.00014999,2]
[426739589,1782771037000,-500.0,0.00014999,2]
[426739585,1782771037000,-500.0,0.00014999,2]
[426739595,1782771037000,-1197.96,0.00014999,2]
[426739588,1782771037000,-500.0,0.00014999,2]
[426739593,1782771037000,-1197.96,0.00014999,2]
[426739565,1782771037000,-500.0,0.00014999,2]
[426739568,1782771037000,-500.0,0.00014999,2]
[426739560,1782771037000,-500.0,0.00014999,2]
[426739566,1782771037000,-500.0,0.00014999,2]
[426739577,1782771037000,-500.0,0.00014999,2]
[426739575,1782771037000,-500.0,0.00014999,2]
[426739578,1782771037000,-500.0,0.00014999,2]
[426739562,1782771037000,-500.0,0.00014999,2]
[426739581,1782771037000,-500.0,0.00014999,2]
[426739583,1782771037000,-500.0,0.00014999,2]
[426739572,1782771037000,-612.48851564,0.00014999,2]
[426739610,1782771038000,-1197.96,0.00014999,2]
[426739606,1782771038000,-1197.96,0.00014999,2]
[426739607,1782771038000,-1197.96,0.00014999,2]
[426739605,1782771038000,-1197.96,0.00014999,2]
[426739609,1782771038000,-1197.96,0.00014999,2]
[426739599,1782771038000,-1197.96,0.00014999,2]
[426739602,1782771038000,-1197.96,0.00014999,2]
[426739611,1782771038000,-1197.96,0.00014999,2]
[426739601,1782771038000,-1197.96,0.00014999,2]
[426739604,1782771038000,-1197.96,0.00014999,2]
[426739603,1782771038000,-1197.96,0.00014999,2]
[426739600,1782771038000,-1197.96,0.00014999,2]
[426739598,1782771038000,-1197.96,0.00014999,2]
[426739597,1782771038000,-1197.96,0.00014999,2]
[426739608,1782771038000,-1197.96,0.00014999,2]
[426739612,1782771038000,-1197.96,0.00014999,2]
[426739626,1782771038000,-7514612.12466334,0.00015,2]
[426739622,1782771038000,-151.0,0.00015,2]
[426739630,1782771038000,-980.79069926,0.00015,2]
[426739628,1782771038000,-2480.50900518,0.00015,2]
[426739627,1782771038000,-811.07376318,0.00015,2]
[426739625,1782771038000,-162.65,0.00015,2]
[426739624,1782771038000,-10856546.2773461,0.00015,2]
[426739620,1782771038000,-300.0,0.00014999,2]
[426739618,1782771038000,-331.37629794,0.00014999,2]
[426739629,1782771038000,-632.63160208,0.00015,2]
[426739614,1782771038000,-1197.96,0.00014999,2]
[426739616,1782771038000,-300.0,0.00014999,2]
[426739613,1782771038000,-1197.96,0.00014999,2]
[426739617,1782771038000,-300.0,0.00014999,2]
[426739619,1782771038000,-300.0,0.00014999,2]
[426739623,1782771038000,-152.0,0.00015,2]
[426739621,1782771038000,-150.0,0.00015,2]
[426739615,1782771038000,-1198.08014865,0.00014999,2]
[426739633,1782771039000,-2632066.29547091,0.00015,2]
[426739632,1782771039000,-905.0,0.000149,2]
[426739641,1782771042000,-3458.24727078,0.00015,2]
[426739690,1782771048000,-337.14047458,0.000149,2]
[426739691,1782771048000,-370.28309242,0.00014999,2]
[426739689,1782771048000,-903.0,0.000149,2]
[426739692,1782771371000,-500.0,0.0001284,2]
[426739693,1782771424000,-500.0,0.0001284,2]
[426739694,1782771478000,-386.07210882,0.0001284,2]
[426739695,1782771531000,-2480.50900518,0.00012841,2]
[426739696,1782771544000,-811.07376318,0.00012841,2]
[426739697,1782771557000,-811.07376318,0.00012841,2]
[426739698,1782771569000,-826.88371761,0.00012841,2]
[426739699,1782771582000,-826.88371761,0.00012841,2]
[426739700,1782771595000,-1339.58836649,0.00012841,2]
[426739701,1782771607000,-1339.58836649,0.00012841,2]
[426739703,1782772137000,-133.52109331,0.00012101,2]
[426739702,1782772137000,-1308.98257765,0.00012041,2]
[426739730,1782772231000,-500.0,0.00013114,2]
[426739727,1782772231000,-500.0,0.00013114,2]
[426739726,1782772231000,-150.0,0.00013114,2]
[426739724,1782772231000,-999.99,0.0001303,2]
[426739719,1782772231000,-1402.23519878,0.00012841,2]
[426739725,1782772231000,-452.04,0.00013066,2]
[426739723,1782772231000,-166.66,0.0001303,2]
[426739721,1782772231000,-9999.99,0.00012841,2]
[426739722,1782772231000,-150.99,0.00012841,2]
[426739720,1782772231000,-9999.99,0.00012841,2]
[426739718,1782772231000,-390.37,0.00012841,2]
[426739716,1782772231000,-9892.38062426,0.00012841,2]
[426739714,1782772231000,-2408.57483146,0.00012778,2]
[426739717,1782772231000,-9262.90087722,0.00012841,2]
[426739712,1782772231000,-150.0,0.00012522,2]
[426739711,1782772231000,-150.0,0.00012456,2]
[426739707,1782772231000,-16.47890669,0.00012101,2]
[426739713,1782772231000,-193.0,0.00012642,2]
[426739709,1782772231000,-150.0,0.00012281,2]
[426739708,1782772231000,-150.0,0.0001216,2]
[426739710,1782772231000,-150.0,0.00012401,2]
[426739706,1782772231000,-157.86138379,0.00012041,2]
[426739731,1782772231000,-223.76546665,0.00013114,2]
[426739715,1782772231000,-221.29138903,0.00012778,2]
[426739729,1782772231000,-500.0,0.00013114,2]
[426739732,1782772231000,-500.0,0.00013114,2]
[426739728,1782772231000,-340.06830655,0.00013114,2]
[426739757,1782772231000,-1136.45,0.00013602,2]
[426739755,1782772231000,-166.66,0.00013578,2]
[426739754,1782772231000,-159.32,0.00013489,2]
[426739752,1782772231000,-1231.52,0.00013399,2]
[426739748,1782772231000,-500.0,0.00013245,2]
[426739746,1782772231000,-1208.36,0.00013144,2]
[426739747,1782772231000,-193.0,0.00013245,2]
[426739751,1782772231000,-166.66,0.00013304,2]
[426739750,1782772231000,-216.58458871,0.00013301,2]
[426739753,1782772231000,-1208.36,0.00013473,2]
[426739745,1782772231000,-912.0,0.00013115,2]
[426739749,1782772231000,-300.0,0.00013245,2]
[426739756,1782772231000,-489.11032531,0.00013596,2]
[426739744,1782772231000,-153.0,0.00013115,2]
[426739742,1782772231000,-899.0,0.00013115,2]
[426739735,1782772231000,-899.0,0.00013115,2]
[426739734,1782772231000,-150.0,0.00013115,2]
[426739739,1782772231000,-916.0,0.00013115,2]
[426739738,1782772231000,-889.0,0.00013115,2]
[426739733,1782772231000,-304.17254375,0.00013114,2]
[426739740,1782772231000,-896.0,0.00013115,2]
[426739737,1782772231000,-151.0,0.00013115,2]
[426739741,1782772231000,-151.0,0.00013115,2]
[426739743,1782772231000,-907.0,0.00013115,2]
[426739736,1782772231000,-890.0,0.00013115,2]
[426739777,1782772232000,-500.0,0.00014401,2]
[426739769,1782772232000,-500.0,0.00014352,2]
[426739779,1782772232000,-1208.36,0.00014459,2]
[426739774,1782772232000,-154.92925631,0.00014352,2]
[426739775,1782772232000,-343.1176374,0.00014352,2]
[426739776,1782772232000,-621.15565481,0.00014352,2]
[426739773,1782772232000,-500.0,0.00014352,2]
[426739772,1782772232000,-500.0,0.00014352,2]
[426739771,1782772232000,-150.0,0.00014352,2]
[426739768,1782772232000,-500.0,0.00014352,2]
[426739764,1782772232000,-166.66,0.00014127,2]
[426739766,1782772232000,-255.0,0.00014216,2]
[426739763,1782772232000,-500.0,0.00014127,2]
[426739767,1782772232000,-500.0,0.00014352,2]
[426739761,1782772232000,-200.0,0.00013981,2]
[426739760,1782772232000,-166.66,0.00013853,2]
[426739765,1782772232000,-1208.36,0.0001413,2]
[426739762,1782772232000,-154.52,0.00014034,2]
[426739758,1782772232000,-1208.36,0.00013801,2]
[426739778,1782772232000,-166.66,0.00014401,2]
[426739770,1782772232000,-500.0,0.00014352,2]
[426739780,1782772232000,-452.04,0.00014699,2]
[426739792,1782772232000,-894.0,0.000149,2]
[426739783,1782772232000,-3297.1312,0.00014889,2]
[426739803,1782772232000,-822.21968653,0.00014959,2]
[426739804,1782772232000,-3229.88370083,0.00014959,2]
[426739802,1782772232000,-15159.59619375,0.00014959,2]
[426739801,1782772232000,-24346.19257056,0.00014959,2]
[426739800,1782772232000,-6164.38451744,0.00014959,2]
[426739799,1782772232000,-31559.80246109,0.00014948,2]
[426739796,1782772232000,-901.0,0.00014904,2]
[426739797,1782772232000,-889.0,0.00014907,2]
[426739793,1782772232000,-895.0,0.00014901,2]
[426739781,1782772232000,-5409.5996,0.000148,2]
[426739795,1782772232000,-904.0,0.00014904,2]
[426739794,1782772232000,-916.0,0.00014902,2]
[426739791,1782772232000,-884.0,0.000149,2]
[426739790,1782772232000,-895.0,0.000149,2]
[426739789,1782772232000,-420.20022204,0.000149,2]
[426739788,1782772232000,-223.54524297,0.000149,2]
[426739787,1782772232000,-151.0,0.000149,2]
[426739785,1782772232000,-152.0,0.000149,2]
[426739782,1782772232000,-974.14106417,0.00014859,2]
[426739786,1782772232000,-151.0,0.000149,2]
[426739784,1782772232000,-151.0,0.000149,2]
[426739798,1782772232000,-177.08377207,0.00014925,2]
[426739808,1782772237000,-2150.66212967,0.00014959,2]
[426739806,1782772237000,-826.88371761,0.00014959,2]
[426739809,1782772237000,-3103.79432608,0.00014959,2]
[426739807,1782772237000,-5581.59781643,0.00014959,2]
[426739813,1782772237000,-1003.97645961,0.00014959,2]
[426739812,1782772237000,-538.715813,0.00014959,2]
[426739811,1782772237000,-279.48818024,0.00014959,2]